bitfinex/quotes_BTCUSD_20241102
["timestamp","ask_amount","ask_price","bid_price","bid_amount"]
[1730560962585,1.06698137,69210.0,69209.0,6.08578912]
[1730560963707,1.03403937,69210.0,69209.0,6.06478912]
[1730560964133,1.0281045,69210.0,69209.0,6.06478912]
[1730560964349,0.001638,69219.0,69209.0,6.06478912]
[1730560964350,0.000819,69228.0,69227.0,0.007288]
[1730560964574,0.21654552,69243.0,69227.0,0.007288]
[1730560964575,0.17682704,69243.0,69242.0,0.05192]
[1730560964794,0.16832075,69279.0,69242.0,0.05192]
[1730560964795,0.21654552,69269.0,69256.0,0.005]
[1730560965021,0.21654552,69269.0,69264.0,0.1]
[1730560965245,0.16832075,69265.0,69264.0,0.1]
[1730560965703,0.67364075,69265.0,69264.0,0.23845525]
[1730560967025,0.50532,69265.0,69264.0,0.23945525]
[1730560967478,0.58192,69265.0,69264.0,2.24145325]
[1730560967695,0.77732,69265.0,69264.0,2.24145325]
[1730560968152,0.77732,69265.0,69264.0,2.34351525]
[1730560968614,0.77732,69265.0,69264.0,2.34251525]
[1730560968843,0.77732,69265.0,69264.0,2.34151525]
[1730560969073,0.77732,69265.0,69264.0,2.34351525]
[1730560969318,0.77732,69265.0,69264.0,2.34451525]
[1730560971154,0.77732,69265.0,69264.0,2.34351525]
[1730560971428,0.77732,69265.0,69264.0,2.34151525]
[1730560971663,0.77732,69265.0,69264.0,2.34451525]
[1730560972110,1.427,69265.0,69264.0,2.34251525]
[1730560972343,1.427,69265.0,69264.0,2.34351525]
[1730560972807,1.427,69265.0,69264.0,2.34251525]
[1730560973013,1.427,69265.0,69264.0,2.34151525]
[1730560973249,1.427,69265.0,69264.0,2.34351525]
[1730560973467,1.427,69265.0,69264.0,0.34151725]
[1730560973686,1.427,69265.0,69264.0,2.34851525]
[1730560974339,1.427,69265.0,69264.0,2.34951525]
[1730560977689,1.427,69265.0,69264.0,2.35115525]
[1730560980444,1.427,69265.0,69264.0,2.34615525]
[1730560980656,1.427,69265.0,69264.0,2.35115525]
[1730560981549,1.4101,69265.0,69264.0,2.35115525]
[1730560982907,1.2147,69265.0,69264.0,2.35115525]
[1730560983138,1.1381,69265.0,69264.0,2.35115525]
[1730560983353,0.993725,69265.0,69264.0,2.37915525]
[1730560983789,0.9071,69265.0,69264.0,2.37915525]
[1730560983991,0.84935,69265.0,69264.0,2.37715525]
[1730560984457,0.84935,69265.0,69264.0,2.50013441]
[1730560984673,0.84935,69265.0,69264.0,2.48967525]
[1730560984900,0.84935,69265.0,69264.0,2.48867525]
[1730560985123,0.84935,69265.0,69264.0,2.48967525]
[1730560985578,0.84935,69265.0,69264.0,2.48867525]
[1730560986221,0.84935,69265.0,69264.0,2.48967525]
[1730560986922,0.84935,69265.0,69264.0,2.49167525]
[1730560987390,0.84935,69265.0,69264.0,2.68877525]
[1730560990539,0.85017,69265.0,69264.0,2.68877525]
[1730560990965,0.85017,69265.0,69264.0,2.49167525]
[1730560993380,0.85017,69265.0,69264.0,2.41407525]
[1730560993825,0.763545,69265.0,69264.0,2.41407525]
[1730560994246,0.763545,69265.0,69264.0,2.40907525]
[1730560994534,0.763545,69265.0,69264.0,2.28607525]
[1730560994747,0.763545,69265.0,69264.0,0.28407725]
[1730560994958,0.763545,69265.0,69264.0,0.28207725]
[1730560995178,0.763545,69265.0,69264.0,2.28407525]
[1730560995817,0.763545,69265.0,69264.0,2.40807525]
[1730560996513,0.763545,69265.0,69264.0,2.40607525]
[1730560996926,0.763545,69265.0,69264.0,2.40807525]
[1730560997134,0.763545,69265.0,69264.0,2.48567525]
[1730560997957,0.763545,69265.0,69264.0,2.54038025]
[1730560998387,0.763545,69265.0,69264.0,2.46578025]
[1730560998617,0.763545,69265.0,69264.0,2.46478025]
[1730560999028,0.763545,69265.0,69264.0,2.46578025]
[1730560999437,0.758545,69265.0,69264.0,2.46578025]
[1730561000066,0.72967,69265.0,69264.0,2.46578025]
[1730561000734,0.585295,69265.0,69264.0,2.46778025]
[1730561000967,0.49867,69265.0,69264.0,2.47278025]
[1730561001208,0.49867,69265.0,69264.0,2.46778025]
[1730561001209,1.00398,69265.0,69264.0,2.46778025]
[1730561001413,1.00398,69265.0,69264.0,2.55368025]
[1730561002732,1.00398,69265.0,69264.0,2.55168025]
[1730561003181,1.00398,69265.0,69264.0,2.55368025]
[1730561003416,1.00398,69265.0,69264.0,2.55168025]
[1730561003633,1.00398,69265.0,69264.0,2.54468025]
[1730561003861,1.00398,69265.0,69264.0,2.55168025]
[1730561004286,1.00398,69265.0,69264.0,2.54368025]
[1730561004503,1.00398,69265.0,69264.0,2.54868025]
[1730561004723,1.00398,69265.0,69264.0,2.55168025]
[1730561004942,1.00398,69265.0,69264.0,2.55068025]
[1730561005152,1.003749,69265.0,69264.0,2.55068025]
[1730561005384,1.002825,69265.0,69264.0,2.55168025]
[1730561005605,1.002825,69265.0,69264.0,2.59456933]
[1730561005838,1.002825,69265.0,69264.0,0.59257133]
[1730561006067,1.002825,69265.0,69264.0,2.59456933]
[1730561006290,1.002825,69265.0,69264.0,2.58956933]
[1730561006518,1.002825,69265.0,69264.0,2.59456933]
[1730561006729,1.002825,69265.0,69264.0,2.54668025]
[1730561007170,1.002825,69265.0,69264.0,2.55168025]
[1730561007866,1.002825,69265.0,69264.0,2.46578025]
[1730561008559,1.002825,69265.0,69264.0,2.53018135]
[1730561008792,1.002825,69265.0,69264.0,2.46378025]
[1730561009013,1.002825,69265.0,69264.0,2.46278025]
[1730561009215,1.002825,69265.0,69264.0,2.46478025]
[1730561009447,1.002825,69265.0,69264.0,2.46578025]
[1730561009665,1.002825,69265.0,69264.0,2.55170047]
[1730561010561,1.002825,69265.0,69264.0,2.46578025]
[1730561011034,0.97395,69265.0,69264.0,2.46578025]
[1730561011277,0.85845,69265.0,69264.0,2.75568384]
[1730561011488,0.85845,69265.0,69264.0,2.65018025]
[1730561011720,0.714075,69265.0,69264.0,2.65018025]
[1730561011938,0.714075,69265.0,69264.0,2.64818025]
[1730561012159,0.714075,69265.0,69264.0,2.64918025]
[1730561012624,0.714075,69265.0,69264.0,2.65018025]
[1730561012856,0.5697,69265.0,69264.0,2.75770535]
[1730561013072,0.5697,69265.0,69264.0,2.73608025]
[1730561013736,0.5697,69265.0,69264.0,2.84361383]
[1730561013737,0.39802829,69265.0,69264.0,2.84361383]
[1730561014010,0.36915329,69265.0,69264.0,2.73608025]
[1730561014437,1.01883329,69265.0,69264.0,2.73608025]
[1730561014905,0.90333329,69265.0,69264.0,2.73608025]
[1730561015114,0.88009929,69265.0,69264.0,2.73608025]
[1730561015960,0.87078529,69265.0,69264.0,2.73608025]
[1730561016170,0.87078529,69265.0,69264.0,2.73108025]
[1730561016385,0.87078529,69265.0,69264.0,2.73608025]
[1730561016640,0.87078529,69265.0,69264.0,2.9329095]
[1730561016872,0.87078529,69265.0,69264.0,2.9279095]
[1730561017099,0.87078529,69265.0,69264.0,3.05678983]
[1730561017320,0.87078529,69265.0,69264.0,2.9329095]
[1730561017955,0.87078529,69265.0,69264.0,2.9299095]
[1730561018162,0.85642029,69265.0,69264.0,3.0619432]
[1730561018389,0.85642029,69265.0,69264.0,3.0609432]
[1730561018602,0.85642029,69265.0,69264.0,4.1759095]
[1730561018783,0.85642029,69265.0,69264.0,4.1769095]
[1730561019052,0.85642029,69265.0,69264.0,4.1779095]
[1730561019534,0.85642029,69265.0,69264.0,4.06468025]
[1730561019765,0.85642029,69265.0,69264.0,4.06668025]
[1730561020387,0.85642029,69265.0,69264.0,4.06868025]
[1730561020660,0.85596029,69265.0,69264.0,4.06868025]
[1730561020866,0.85504029,69265.0,69264.0,4.06468025]
[1730561021329,0.85504029,69265.0,69264.0,3.97908025]
[1730561021796,0.85504029,69265.0,69264.0,3.97808025]
[1730561022226,0.85504029,69265.0,69264.0,3.98108025]
[1730561022657,0.85504029,69265.0,69264.0,3.98308025]
[1730561023100,0.85504029,69265.0,69264.0,3.98108025]
[1730561023306,0.85504029,69265.0,69264.0,3.79868025]
[1730561023518,0.85504029,69265.0,69264.0,3.71778025]
[1730561023956,0.85586029,69265.0,69264.0,3.71778025]
[1730561024661,0.85586029,69265.0,69264.0,2.47178025]
[1730561026386,0.85586029,69265.0,69264.0,2.478588]
[1730561026598,0.85586029,69265.0,69264.0,2.47178025]
[1730561027851,0.85586029,69265.0,69264.0,0.46978225]
[1730561028062,0.85586029,69265.0,69264.0,2.47178025]
[1730561028513,0.85586029,69265.0,69264.0,2.66568025]
[1730561028758,0.85586029,69265.0,69264.0,3.99468025]
[1730561029597,0.85586029,69265.0,69264.0,3.99268025]
[1730561030036,0.85586029,69265.0,69264.0,3.99368025]
[1730561030928,0.85586029,69265.0,69264.0,3.99168025]
[1730561031161,1.36117029,69265.0,69264.0,3.99368025]
[1730561031402,1.15581,69265.0,69264.0,4.08028025]
[1730561031613,1.15581,69265.0,69264.0,4.32071233]
[1730561032068,1.15581,69265.0,69264.0,4.32271233]
[1730561033617,1.15581,69265.0,69264.0,4.32071233]
[1730561034275,1.15581,69265.0,69264.0,4.32271233]
[1730561037978,1.15081,69265.0,69264.0,4.32271233]
[1730561039063,1.15081,69265.0,69264.0,4.07828025]
[1730561039286,1.15081,69265.0,69264.0,4.07328025]
[1730561039593,1.15081,69265.0,69264.0,4.07828025]
[1730561039679,1.15081,69265.0,69264.0,3.68878025]
[1730561040316,1.15081,69265.0,69264.0,3.68678025]
[1730561040529,1.15081,69265.0,69264.0,2.44078025]
[1730561040761,1.41621,69265.0,69264.0,2.44278025]
[1730561041226,1.41621,69265.0,69264.0,2.44078025]
[1730561041662,1.41621,69265.0,69264.0,2.44178025]
[1730561041865,1.41621,69265.0,69264.0,2.46478025]
[1730561042097,1.41621,69265.0,69264.0,2.46378025]
[1730561042328,1.41621,69265.0,69264.0,2.46278025]
[1730561042757,1.15081,69265.0,69264.0,2.46378025]
[1730561043443,1.15081,69265.0,69264.0,2.46578025]
[1730561043904,1.15081,69265.0,69264.0,2.46378025]
[1730561044116,1.15081,69265.0,69264.0,2.46578025]
[1730561044760,1.15035,69265.0,69264.0,2.46478025]
[1730561045182,1.15035,69265.0,69264.0,2.46578025]
[1730561045414,1.15035,69265.0,69264.0,2.55930146]
[1730561045663,0.74043634,69265.0,69264.0,2.74500146]
[1730561045874,0.74043634,69265.0,69264.0,2.73808025]
[1730561046380,0.74043634,69265.0,69264.0,2.73708025]
[1730561046582,0.74043634,69265.0,69264.0,2.73508025]
[1730561046788,0.74043634,69265.0,69264.0,2.73808025]
[1730561047443,0.74043634,69265.0,69264.0,2.73608025]
[1730561047647,0.74043634,69265.0,69264.0,2.73808025]
[1730561048058,0.74043634,69265.0,69264.0,2.73708025]
[1730561048516,0.74043634,69265.0,69264.0,2.73808025]
[1730561048737,0.74043634,69265.0,69264.0,2.55738025]
[1730561049185,0.74043634,69265.0,69264.0,2.55838025]
[1730561049402,0.74043634,69265.0,69264.0,2.55638025]
[1730561049634,0.65381134,69265.0,69264.0,2.55638025]
[1730561049863,0.45168634,69265.0,69264.0,2.55838025]
[1730561050404,0.45168634,69265.0,69264.0,2.55438025]
[1730561050629,1.10136634,69265.0,69264.0,2.55638025]
[1730561050862,0.95649134,69265.0,69264.0,2.55638025]
[1730561051088,0.95649134,69265.0,69264.0,2.55438025]
[1730561051335,0.95649134,69265.0,69264.0,3.80238025]
[1730561051785,0.92761634,69265.0,69264.0,3.80238025]
[1730561052010,0.84099134,69265.0,69264.0,3.80338025]
[1730561052233,0.81211634,69265.0,69264.0,3.80238025]
[1730561052465,0.81211634,69265.0,69264.0,3.80338025]
[1730561052698,0.78324134,69265.0,69264.0,3.98408025]
[1730561053142,0.78324134,69265.0,69264.0,3.98608025]
[1730561053143,0.72549134,69265.0,69264.0,3.98608025]
[1730561053367,0.66523414,69265.0,69264.0,3.98308025]
[1730561053621,0.66523414,69265.0,69264.0,3.98508025]
[1730561053892,0.66523414,69265.0,69264.0,4.06248025]
[1730561054346,0.63631414,69265.0,69264.0,4.06248025]
[1730561056201,0.63631414,69265.0,69264.0,4.06048025]
[1730561056869,0.63631414,69265.0,69264.0,3.87978025]
[1730561058238,0.63631414,69265.0,69264.0,1.87778225]
[1730561058690,0.63631414,69265.0,69264.0,3.87978025]
[1730561060229,1.14162414,69265.0,69264.0,3.87778025]
[1730561060469,1.14162414,69265.0,69264.0,3.87878025]
[1730561060688,1.14244414,69265.0,69264.0,3.87878025]
[1730561060926,1.14244414,69265.0,69264.0,4.04575059]
[1730561061169,1.14244414,69265.0,69264.0,4.04675059]
[1730561061393,1.14244414,69265.0,69264.0,4.04975059]
[1730561062103,1.11501793,69265.0,69264.0,4.04975059]
[1730561062513,1.11501793,69265.0,69264.0,4.04775059]
[1730561062734,1.11501793,69265.0,69264.0,4.04675059]
[1730561062973,1.11501793,69265.0,69264.0,4.04875059]
[1730561063192,1.11501793,69265.0,69264.0,4.04975059]
[1730561063401,0.71040424,69265.0,69264.0,4.21857675]
[1730561064066,0.65265424,69265.0,69264.0,4.21857675]
[1730561064285,0.29284552,69293.0,69292.0,0.06192]
[1730561064286,0.18160406,69293.0,69292.0,0.06192]
[1730561064499,0.18160406,69293.0,69292.0,0.30037525]
[1730561064680,0.0763,69293.0,69292.0,1.72144863]
[1730561064921,0.58141,69293.0,69292.0,1.72144863]
[1730561065403,0.58141,69293.0,69292.0,1.67836425]
[1730561066070,0.58141,69293.0,69292.0,1.7214443]
[1730561066273,0.58141,69293.0,69292.0,1.67936425]
[1730561066758,0.58141,69293.0,69292.0,1.68136425]
[1730561067423,0.58105248,69293.0,69292.0,1.68136425]
[1730561068691,0.58105248,69293.0,69292.0,1.7244443]
[1730561068929,0.58105248,69293.0,69292.0,1.68136425]
[1730561069183,0.50511,69293.0,69292.0,1.68136425]
[1730561070036,0.50511,69293.0,69292.0,1.74599082]
[1730561070521,0.50511,69293.0,69292.0,1.68136425]
[1730561071202,0.50511,69293.0,69292.0,1.74590846]
[1730561071430,1.15453,69293.0,69292.0,1.74590846]
[1730561071869,1.15453,69293.0,69292.0,1.74590813]
[1730561072094,1.15453,69293.0,69292.0,1.68136425]
[1730561072314,1.15453,69293.0,69292.0,1.74589504]
[1730561072766,1.039898,69293.0,69292.0,1.76796425]
[1730561072972,1.039898,69293.0,69292.0,1.74589262]
[1730561073283,1.039898,69293.0,69292.0,1.67936425]
[1730561073508,1.039898,69293.0,69292.0,1.68136425]
[1730561073694,1.039898,69293.0,69292.0,1.68036425]
[1730561073944,1.039898,69293.0,69292.0,1.68136425]
[1730561074154,1.039898,69293.0,69292.0,1.74589262]
[1730561074396,1.039898,69293.0,69292.0,1.68136425]
[1730561075288,1.039898,69293.0,69292.0,1.74587112]
[1730561075505,1.039898,69293.0,69292.0,1.74387112]
[1730561075740,1.039898,69293.0,69292.0,1.74287112]
[1730561075956,1.039898,69293.0,69292.0,1.74487112]
[1730561076175,1.039898,69293.0,69292.0,1.68136425]
[1730561076395,1.039898,69293.0,69292.0,1.67836425]
[1730561076613,1.039898,69293.0,69292.0,1.68036425]
[1730561076864,1.039898,69293.0,69292.0,1.68136425]
[1730561078216,1.039898,69293.0,69292.0,1.7673265]
[1730561078427,1.039898,69293.0,69292.0,1.76732549]
[1730561078860,1.039898,69293.0,69292.0,1.68136425]
[1730561079069,1.039898,69293.0,69292.0,1.67836425]
[1730561079275,1.039898,69293.0,69292.0,0.40339625]
[1730561079514,1.039898,69293.0,69292.0,1.68136425]
[1730561082174,1.037998,69293.0,69292.0,1.68136425]
[1730561083709,1.037998,69293.0,69292.0,1.68036425]
[1730561083918,1.037998,69293.0,69292.0,1.67836425]
[1730561084138,1.037998,69293.0,69292.0,1.67936425]
[1730561084375,1.037998,69293.0,69292.0,1.68136425]
[1730561084878,1.037998,69293.0,69292.0,1.68100425]
[1730561085304,1.037998,69293.0,69292.0,1.68300425]
[1730561085696,1.037998,69293.0,69292.0,1.73868925]
[1730561085960,1.037998,69293.0,69292.0,1.73768925]
[1730561086389,1.037998,69293.0,69292.0,1.73868925]
[1730561086601,1.037998,69293.0,69292.0,1.73768925]
[1730561086825,1.037998,69293.0,69292.0,1.73868925]
[1730561087071,1.037998,69293.0,69292.0,1.74068925]
[1730561087711,1.14817831,69293.0,69292.0,1.74068925]
[1730561087928,1.037998,69293.0,69292.0,1.74068925]
[1730561089923,1.037998,69293.0,69292.0,0.46372125]
[1730561090374,1.037998,69293.0,69292.0,1.80515149]
[1730561092216,1.037998,69293.0,69292.0,1.74068925]
[1730561092444,1.037998,69293.0,69292.0,1.74285267]
[1730561092660,1.14817831,69293.0,69292.0,1.802362]
[1730561092866,1.14817831,69293.0,69292.0,1.78586176]
[1730561093305,1.14817831,69293.0,69292.0,1.78086176]
[1730561093527,1.14817831,69293.0,69292.0,1.73785267]
[1730561093974,1.1470803,69293.0,69292.0,1.73785267]
[1730561095261,1.1470803,69293.0,69292.0,1.78086653]
[1730561096175,1.1452803,69293.0,69292.0,1.78086653]
[1730561096429,1.1452803,69293.0,69292.0,1.78087361]
[1730561100219,1.1452803,69293.0,69292.0,1.73785267]
[1730561100918,1.2241803,69293.0,69292.0,1.78088849]
[1730561101599,1.1452803,69293.0,69292.0,1.78088849]
[1730561102026,1.1452803,69293.0,69292.0,1.73685267]
[1730561102249,1.1452803,69293.0,69292.0,1.73485267]
[1730561102470,1.1452803,69293.0,69292.0,1.73785267]
[1730561102694,1.03509999,69293.0,69292.0,1.73785267]
[1730561102921,1.03509999,69293.0,69292.0,1.80640589]
[1730561103153,1.03509999,69293.0,69292.0,1.82792364]
[1730561103376,1.03509999,69293.0,69292.0,1.74385267]
[1730561103585,1.03509999,69293.0,69292.0,1.85144138]
[1730561103849,1.03509999,69293.0,69292.0,1.73985267]
[1730561104036,1.03509999,69293.0,69292.0,1.74285267]
[1730561105385,1.03509999,69293.0,69292.0,1.84846887]
[1730561105606,1.03509999,69293.0,69292.0,1.84946887]
[1730561106052,1.03509999,69293.0,69292.0,1.85046887]
[1730561106499,1.03509999,69293.0,69292.0,1.85052516]
[1730561108339,1.03509999,69293.0,69292.0,1.74285267]
[1730561109299,1.4192803,69293.0,69292.0,1.64558337]
[1730561109525,1.52946061,69293.0,69292.0,1.05574267]
[1730561109971,1.52946061,69293.0,69292.0,1.05374267]
[1730561110207,1.52946061,69293.0,69292.0,1.05474267]
[1730561110438,1.52946061,69293.0,69292.0,0.24527967]
[1730561110667,1.52946061,69293.0,69292.0,1.09634867]
[1730561110894,1.52946061,69293.0,69292.0,1.19634867]
[1730561111112,1.52946061,69293.0,69292.0,1.19734867]
[1730561112052,1.52946061,69293.0,69292.0,1.19534867]
[1730561112272,1.52946061,69293.0,69292.0,1.19734867]
[1730561112496,1.52946061,69293.0,69292.0,1.19634867]
[1730561112712,1.47713832,69293.0,69292.0,1.19634867]
[1730561112933,1.47713832,69293.0,69292.0,1.19734867]
[1730561113843,1.47713832,69293.0,69292.0,1.19534867]
[1730561114078,1.47713832,69293.0,69292.0,0.63339015]
[1730561114303,1.47713832,69293.0,69292.0,0.201021]
[1730561114535,1.47713832,69293.0,69292.0,0.202021]
[1730561114767,1.49063118,69293.0,69292.0,0.101]
[1730561114988,1.49063165,69293.0,69292.0,0.101]
[1730561115207,1.49063165,69293.0,69292.0,0.103]
[1730561115712,1.49063165,69293.0,69292.0,0.201021]
[1730561115940,1.49063165,69293.0,69292.0,0.203021]
[1730561116164,1.47713832,69293.0,69292.0,0.20397831]
[1730561116405,1.47713832,69293.0,69292.0,0.10297831]
[1730561116866,1.47713832,69293.0,69292.0,0.10397831]
[1730561117568,1.47713832,69293.0,69292.0,0.20297831]
[1730561118262,1.47713832,69293.0,69292.0,0.20097831]
[1730561118490,1.47713832,69293.0,69292.0,1.16226831]
[1730561118932,1.47713832,69293.0,69292.0,1.16291031]
[1730561119384,1.47713832,69293.0,69292.0,1.16391031]
[1730561119855,1.47713832,69293.0,69292.0,1.30136556]
[1730561120091,1.47713832,69293.0,69292.0,1.30336556]
[1730561120780,1.47713832,69293.0,69292.0,1.30236556]
[1730561121438,1.47713832,69293.0,69292.0,1.30036556]
[1730561121660,1.47713832,69293.0,69292.0,1.30236556]
[1730561122113,1.47713832,69293.0,69292.0,1.30136556]
[1730561122335,1.30909999,69293.0,69292.0,1.30036556]
[1730561122551,1.30909999,69293.0,69292.0,1.30236556]
[1730561122775,1.30909999,69293.0,69292.0,1.30336556]
[1730561122964,1.30909999,69293.0,69292.0,1.30136556]
[1730561123507,1.11049999,69293.0,69292.0,1.30336556]
[1730561123732,1.03509999,69293.0,69292.0,1.30336556]
[1730561124193,1.03509999,69293.0,69292.0,1.44072556]
[1730561124869,1.03509999,69293.0,69292.0,1.48383125]
[1730561125088,1.03509999,69293.0,69292.0,1.48083125]
[1730561125304,1.03509999,69293.0,69292.0,1.48383125]
[1730561125531,1.03509999,69293.0,69292.0,1.44072556]
[1730561125748,1.03509999,69293.0,69292.0,1.43972556]
[1730561126198,1.03509999,69293.0,69292.0,1.50337626]
[1730561126642,1.03509999,69293.0,69292.0,1.50537626]
[1730561131430,1.03509999,69293.0,69292.0,1.48367286]
[1730561131640,1.03509999,69293.0,69292.0,1.44072556]
[1730561131872,1.03509999,69293.0,69292.0,1.36022556]
[1730561132585,1.03509999,69293.0,69292.0,1.35822556]
[1730561132802,1.03509999,69293.0,69292.0,1.35922556]
[1730561133252,1.03509999,69293.0,69292.0,1.36022556]
[1730561134341,1.03509999,69293.0,69292.0,1.35822556]
[1730561134565,1.03509999,69293.0,69292.0,0.39993556]
[1730561135040,1.03509999,69293.0,69292.0,1.36022556]
[1730561137385,1.03509999,69293.0,69292.0,1.33722556]
[1730561137579,1.14530681,69293.0,69292.0,1.33722556]
[1730561137835,1.03509999,69293.0,69292.0,1.33722556]
[1730561138267,1.03509999,69293.0,69292.0,1.33422556]
[1730561138471,1.03509999,69293.0,69292.0,1.33622556]
[1730561138731,1.03509999,69293.0,69292.0,1.33722556]
[1730561138942,1.03509999,69293.0,69292.0,1.33422556]
[1730561139152,1.03509999,69293.0,69292.0,1.30636556]
[1730561140447,1.03509999,69293.0,69292.0,1.30836556]
[1730561141105,1.03509999,69293.0,69292.0,1.30336556]
[1730561141344,1.03509999,69293.0,69292.0,1.30836556]
[1730561143202,1.03509999,69293.0,69292.0,1.30336556]
[1730561143683,1.03509999,69293.0,69292.0,1.30836556]
[1730561144100,1.03509999,69293.0,69292.0,1.30536556]
[1730561144316,1.03509999,69293.0,69292.0,1.30036556]
[1730561144541,1.03509999,69293.0,69292.0,1.30336556]
[1730561144789,1.11699999,69293.0,69292.0,1.30336556]
[1730561145026,1.11699999,69293.0,69292.0,1.30136556]
[1730561145246,1.22720681,69293.0,69292.0,1.30336556]
[1730561145463,1.22720681,69293.0,69292.0,1.20336556]
[1730561145894,1.22720681,69293.0,69292.0,1.20236556]
[1730561146639,1.22720681,69293.0,69292.0,1.20036556]
[1730561146884,1.22720681,69293.0,69292.0,1.30236556]
[1730561146885,1.03509999,69293.0,69292.0,1.30236556]
[1730561147789,1.03509999,69293.0,69292.0,0.34107556]
[1730561148016,1.03509999,69293.0,69292.0,0.34407556]
[1730561148232,1.03509999,69293.0,69292.0,1.30336556]
[1730561148458,1.03509999,69293.0,69292.0,1.30436556]
[1730561148920,1.03509999,69293.0,69292.0,1.30236556]
[1730561149144,1.03509999,69293.0,69292.0,1.33222556]
[1730561149647,1.03509999,69293.0,69292.0,1.33022556]
[1730561150111,1.03509999,69293.0,69292.0,1.33122556]
[1730561150333,1.03509999,69293.0,69292.0,1.54572556]
[1730561150553,1.03509999,69293.0,69292.0,1.62832556]
[1730561150756,0.89078499,69293.0,69292.0,1.62832556]
[1730561150990,0.86192199,69293.0,69292.0,1.63032556]
[1730561151206,0.77533299,69293.0,69292.0,1.63032556]
[1730561151411,0.77533299,69293.0,69292.0,1.62832556]
[1730561151625,0.77533299,69293.0,69292.0,1.62932556]
[1730561151838,0.71760699,69293.0,69292.0,1.62932556]
[1730561152704,0.71760699,69293.0,69292.0,1.63032556]
[1730561152915,0.71760699,69293.0,69292.0,0.67203556]
[1730561153127,0.71760699,69293.0,69292.0,0.67003556]
[1730561153336,0.71760699,69293.0,69292.0,1.62932556]
[1730561153550,0.71760699,69293.0,69292.0,1.63232556]
[1730561154012,0.68874399,69293.0,69292.0,1.63232556]
[1730561154247,0.65988099,69293.0,69292.0,1.63232556]
[1730561155158,0.51556599,69293.0,69292.0,1.63232556]
[1730561155781,1.02067599,69293.0,69292.0,1.63232556]
[1730561157481,1.02067599,69293.0,69292.0,1.63032556]
[1730561157700,0.99181299,69293.0,69292.0,1.63032556]
[1730561158934,0.99181299,69293.0,69292.0,1.63232556]
[1730561159354,0.99181299,69293.0,69292.0,1.62832556]
[1730561159795,0.99181299,69293.0,69292.0,1.63132556]
[1730561160024,0.99181299,69293.0,69292.0,1.63032556]
[1730561160484,0.99181299,69293.0,69292.0,1.63132556]
[1730561160702,0.99181299,69293.0,69292.0,1.62932556]
[1730561160934,0.99181299,69293.0,69292.0,1.63032556]
[1730561161194,0.84749799,69293.0,69292.0,1.63032556]
[1730561161664,0.81863499,69293.0,69292.0,1.63032556]
[1730561161898,0.70318299,69293.0,69292.0,1.63232556]
[1730561162326,0.70318299,69293.0,69292.0,1.63032556]
[1730561162805,0.55886799,69293.0,69292.0,3.46382556]
[1730561163043,0.55886799,69293.0,69292.0,3.46182556]
[1730561163270,0.55886799,69293.0,69292.0,3.52517627]
[1730561163480,0.55886799,69293.0,69292.0,3.46282556]
[1730561163698,0.53000499,69293.0,69292.0,3.46182556]
[1730561163929,0.41455299,69293.0,69292.0,3.46282556]
[1730561164360,1.06397299,69293.0,69292.0,3.54866076]
[1730561164818,1.06397299,69293.0,69292.0,3.46282556]
[1730561165031,1.06479399,69293.0,69292.0,3.46282556]
[1730561165532,1.06479399,69293.0,69292.0,3.57011956]
[1730561165739,1.06479399,69293.0,69292.0,3.57211956]
[1730561166294,1.06479399,69293.0,69292.0,3.65871956]
[1730561166922,1.06479399,69293.0,69292.0,3.65868384]
[1730561167481,1.06479399,69293.0,69292.0,3.65669105]
[1730561168387,1.06479399,69293.0,69292.0,3.54942556]
[1730561170656,1.06479399,69293.0,69292.0,3.65957683]
[1730561171094,1.06364399,69293.0,69292.0,4.18007683]
[1730561171332,1.06364399,69293.0,69292.0,4.32857683]
[1730561172811,1.06364399,69293.0,69292.0,5.57457683]
[1730561173231,1.06364399,69293.0,69292.0,4.61528683]
[1730561173444,1.06364399,69293.0,69292.0,5.57657683]
[1730561174280,1.05578558,69293.0,69292.0,5.70528982]
[1730561174691,1.05578558,69293.0,69292.0,5.71028982]
[1730561174911,1.05578558,69293.0,69292.0,5.6917281]
[1730561175561,1.05578558,69293.0,69292.0,5.58157683]
[1730561175805,1.05578558,69293.0,69292.0,5.6917281]
[1730561176264,1.05578558,69293.0,69292.0,5.88167359]
[1730561177592,1.05578558,69293.0,69292.0,5.6917281]
[1730561178026,1.05578558,69293.0,69292.0,4.91257683]
[1730561180213,0.91147058,69293.0,69292.0,5.04111996]
[1730561180476,0.91147058,69293.0,69292.0,4.91257683]
[1730561180712,0.000821,69293.0,69292.0,5.0227281]
[1730561180921,0.21654552,69315.0,69314.0,0.228989]
[1730561181130,0.21654552,69315.0,69314.0,0.46744425]
[1730561181347,0.0759,69319.0,69318.0,0.200983]
[1730561181566,0.0759,69319.0,69318.0,0.46243825]
[1730561181779,0.50492,69319.0,69318.0,0.46243825]
[1730561182860,0.50492,69319.0,69318.0,0.46343825]
[1730561183278,0.50492,69319.0,69318.0,0.57858952]
[1730561183489,0.50492,69319.0,69318.0,0.57958952]
[1730561183710,0.50492,69319.0,69318.0,0.46943825]
[1730561184385,0.50492,69319.0,69318.0,0.47143825]
[1730561187939,1.1541,69319.0,69318.0,0.47143825]
[1730561189210,1.154921,69319.0,69318.0,0.47143825]
[1730561189423,1.154921,69319.0,69318.0,0.50029825]
[1730561190306,1.154921,69319.0,69318.0,0.55796025]
[1730561192888,1.154921,69319.0,69318.0,0.56296025]
[1730561194036,1.154921,69319.0,69318.0,0.55796025]
[1730561194671,1.432321,69319.0,69318.0,0.53496025]
[1730561195979,1.432321,69319.0,69318.0,0.55796025]
[1730561197986,1.154921,69319.0,69318.0,0.55796025]
[1730561205832,1.432321,69319.0,69318.0,0.52996025]
[1730561206042,1.432321,69319.0,69318.0,0.50110025]
[1730561206227,1.432321,69319.0,69318.0,0.44343825]
[1730561206714,1.54247227,69319.0,69318.0,0.44343825]
[1730561206923,1.54247227,69319.0,69318.0,0.43943825]
[1730561207180,1.5559798,69319.0,69318.0,0.44143825]
[1730561207409,1.54247227,69319.0,69318.0,0.44243825]
[1730561207664,1.54247227,69319.0,69318.0,0.43943825]
[1730561207883,1.54247227,69319.0,69318.0,0.44143825]
[1730561208547,1.432321,69319.0,69318.0,0.44143825]
[1730561209185,1.432321,69319.0,69318.0,0.44243825]
[1730561209840,1.432321,69319.0,69318.0,0.44043825]
[1730561210058,1.432321,69319.0,69318.0,0.44143825]
[1730561210508,1.432321,69319.0,69318.0,0.44243825]
[1730561210688,1.432321,69319.0,69318.0,0.44043825]
[1730561210938,1.432321,69319.0,69318.0,0.44243825]
[1730561212175,1.432321,69319.0,69318.0,0.43943825]
[1730561212458,1.432321,69319.0,69318.0,0.44143825]
[1730561212671,1.432321,69319.0,69318.0,0.44243825]